Cogmind - Beta 12 @@@ ROGUE MODE // 2023.10.02 @ 16:04:33 Player: Figgis Result: Self-destructed Performance ------------- Evolutions (1) 500 Regions Visited (3) 600 Robots Destroyed (40) 200 Value Destroyed (987) 987 Prototype IDs (1) 20 Alien Tech Used (0) 0 Bonus (85) 85 TOTAL SCORE: 2392 Bonus ------- High Alert Combat Kills 85 Cogmind --------- Core Integrity 228/400 Matter 151/300 Energy 9/100 System Corruption 0% Temperature Cool (33) Movement Walking (190) Ox1 Location -9/Materials Parts ------- > --- POWER (1) -------- (None) > --- PROPULSION (4) --- Aluminum Leg > --- UTILITY (2) ------ Large Storage Unit Weight Redist. System > --- WEAPON (2) ------- Advanced Beam Cannon > --- INVENTORY (15) --- Ion Engine Ion Engine Heavy Ion Engine Deuterium Engine Deuterium Engine Shield Generator Medium Laser Small Laser Advanced Beam Cannon Rocket Launcher Missile Launcher Mining Laser Peak State ------------ > --- POWER ------------ Deuterium Engine > --- PROPULSION ------- Aluminum Leg Aluminum Leg Aluminum Leg Aluminum Leg > --- UTILITY ---------- Large Storage Unit Weight Redist. System > --- WEAPON ----------- Advanced Beam Cannon Missile Launcher > --- INVENTORY -------- Ion Engine Ion Engine Deuterium Engine Deuterium Engine Shield Generator Medium Laser Small Laser Advanced Beam Cannon Rocket Launcher Missile Launcher Mining Laser [Rating: 18] Favorites ----------- Power Ion Engine Engine Ion Engine Propulsion Aluminum Leg Leg Aluminum Leg Utility Small Storage Unit Device Weight Redist. System Storage Small Storage Unit Weapon Medium Laser Energy Gun Medium Laser Energy Cannon Advanced Beam Cannon Launcher Missile Launcher Build | -11 -10 -10 -9 ------- Run | Jun Mat Min Mat Slots Evolved 2 | . . . 2 Power . | . . . . Propulsion 2 | . . . 2 Utility . | . . . . Weapon . | . . . . Parts Attached 20 | 6 2 3 9 Power 4 | 1 1 1 1 Engine 4 | 1 1 1 1 Core . | . . . . Reactor . | . . . . Propulsion 6 | 2 . . 4 Treads . | . . . . Leg 6 | 2 . . 4 Wheel . | . . . . Hover . | . . . . Flight . | . . . . Utility 3 | 1 . . 2 Device 1 | . . . 1 Storage 2 | 1 . . 1 Processor . | . . . . Hackware . | . . . . Protection . | . . . . Artifact . | . . . . Weapon 7 | 2 1 2 2 Energy Gun 4 | 2 1 1 . Energy Cannon 1 | . . . 1 Ballistic Gun . | . . . . Ballistic Cannon . | . . . . Launcher 2 | . . 1 1 Special Weapon . | . . . . Impact Weapon . | . . . . Slashing Weapon . | . . . . Piercing Weapon . | . . . . Special Melee Weapon . | . . . . Unidentified Prototypes 1 | . . . 1 Parts Lost 10 | . 1 2 7 Power 2 | . . 1 1 Propulsion 5 | . . . 5 Utility . | . . . . Weapon 3 | . 1 1 1 Highest Loss Streak 4 | . 1 1 4 To Critical Strikes . | . . . . Average Slot Usage (%) 85 | . 84 83 90 Engine 12 | . 14 12 10 Leg 30 | . 28 28 39 Device 2 | . . . 10 Storage 13 | . 14 14 11 Energy Gun 23 | . 27 27 11 Launcher 1 | . . . 4 Naked Turns . | . . . . Heaviest Build 39 | 14 14 13 39 Greatest Support 46 | 20 20 20 46 Greatest Overweight (x) 2 | . . . 2 Average Overweight (x) . | . . . . Largest Inventory Capacity 15 | 8 8 8 15 Average Capacity 9 | 7 8 8 14 Most Carried 13 | 5 6 8 13 Average Carried 6 | 3 2 7 8 Final Capacity 15 | 8 8 8 15 Final Carried 12 | 3 6 7 12 Class Distribution -------------------- 100% | Mutant Dominant Class ---------------- Mutant | -10/Materials Mutant | -10/Mines Mutant | -9/Materials Resources | -11 -10 -10 -9 ----------- Run | Jun Mat Min Mat Matter Collected 469 | 141 147 85 96 Remotely . | . . . . Salvage Created 1181 | . 295 159 727 Parts 69 | . 17 8 44 Haulers Intercepted 1 | . . . 1 Recyclers Shooed 1 | . . . 1 Parts Field Recycled . | . . . . Retrieved Matter . | . . . . Parts Self-Destructed . | . . . . Prevented . | . . . . Kills | -11 -10 -10 -9 ------- Run | Jun Mat Min Mat Combat Hostiles Destroyed 26 | . 3 8 15 Guns 11 | . 3 7 1 Cannons 10 | . . . 10 AOE 5 | . . 1 4 Classes Destroyed 9 | . 4 1 4 Worker 3 | . 1 . 2 Builder 1 | . . . 1 Tunneler 1 | . . . 1 Hauler 1 | . . . 1 Recycler 3 | . 2 . 1 Watcher 5 | . 2 . 3 Swarmer 8 | . . 6 2 Grunt 14 | . 3 2 9 Sentry 4 | . . . 4 Best Kill Streak 11 | . 4 3 11 Combat Bots Only 4 | . 1 3 4 Max Kills in Single Turn 3 | . 1 1 3 Gunslinging . | . . . . Exploded 1 | . . 1 1 Melee . | . . . . Uniques/NPCs Destroyed . | . . . . Combat | -11 -10 -10 -9 -------- Run | Jun Mat Min Mat Damage Taken 1291 | . 166 346 779 Core 274 | . 34 68 172 Absorbed by Shields . | . . . . Core Remaining (%) 79 | 100 . 59 . Volleys Fired 102 | . 30 20 52 Largest 2 | . 2 2 2 Hottest 104 | . 90 90 104 Shots Fired 166 | . 59 35 72 Gun 115 | . 59 32 24 Cannon 33 | . . . 33 Launcher 18 | . . 3 15 Special . | . . . . Kinetic . | . . . . Thermal 119 | . 30 32 57 Explosive 18 | . . 3 15 Electromagnetic 29 | . 29 . . Robot Hit Streak 8 | . 7 8 3 Robot Miss Streak 6 | . 6 2 3 Penetration Max . | . . . . Secondary Targets 2 | . . 2 . Max Gunslinging Chain 1 | . . 1 . Shots Hit Robots 81 | . 27 20 34 Core Hits 55 | . 12 12 31 Critical Kills . | . . . . Critical Parts Destroyed . | . . . . Critical Strikes 5 | . 3 2 . Burn 5 | . 3 2 . Melee Attacks . | . . . . Impact . | . . . . Slashing . | . . . . Piercing . | . . . . Sneak Attacks . | . . . . Combat Hostiles . | . . . . Follow-up Attacks . | . . . . Damage Inflicted 2264 | . 597 323 1344 Guns 782 | . 414 238 130 Cannons 470 | . . . 470 Explosions 998 | . 183 85 730 Melee . | . . . . Ramming 14 | . . . 14 Kinetic . | . . . . Thermal 1197 | . 359 238 600 Explosive 759 | . . 85 674 Electromagnetic 294 | . 238 . 56 Impact . | . . . . Slashing . | . . . . Piercing . | . . . . Highest Corruption . | . . . . Average Corruption . | . . . . Corruption Purged . | . . . . Corruption Blocked . | . . . . Overload Shots . | . . . . Overflow Damage 71 | . 5 27 39 Projectiles 11 | . . . 11 Explosions 60 | . 5 27 28 Melee . | . . . . Knockbacks . | . . . . Impact . | . . . . Kinetic . | . . . . Secondary . | . . . . Self-Inflicted Damage 40 | . . 40 . Shots 1 | . . 1 . Rammed . | . . . . Targets Rammed 1 | . . . 1 Kicked 1 | . . . 1 Crushed . | . . . . Highest Temperature 388 | . 388 198 376 Average Temperature 103 | . 140 58 94 Received Heat Transfer 300 | . 90 48 162 Effects 4 | . 2 . 2 Shutdowns 1 | . . . 1 Energy Bleed 1 | . . . 1 Matter Decay 1 | . 1 . . Short Circuit 1 | . 1 . . Siege Activations . | . . . . Robots Corrupted . | . . . . Combat Hostiles . | . . . . Parts Fried 2 | . 2 . . Impact Corruptions . | . . . . Robots Melted . | . . . . Combat Hostiles . | . . . . Parts Melted 2 | . 2 . . Heat Transferred 2892 | . 890 804 1198 Parts Sabotaged . | . . . . Parts Stolen . | . . . . Parts Stripped . | . . . . Power Chain Reactions 1 | . 1 . . Missiles Intercepted . | . . . . Alert | -11 -10 -10 -9 ------- Run | Jun Mat Min Mat Peak Influence 617 | . 217 282 617 Initial 84 | . . 84 . Average 147 | . 91 130 248 Maximum Alert Level 2 | . 1 1 2 Low Security (%) 66 | 100 86 66 48 Level 1 24 | . 13 33 15 Level 2 8 | . . . 36 Level 3 . | . . . . Level 4 . | . . . . Level 5 . | . . . . High Security . | . . . . Max Security . | . . . . Squads Dispatched 5 | . 1 . 4 Investigation . | . . . . Extermination . | . . . . Reinforcement 5 | . 1 . 4 Assault . | . . . . Garrison . | . . . . Intercept . | . . . . Searches Triggered . | . . . . Construction Impeded 1 | . . . 1 Haulers Reinforced . | . . . . Active Scanning Responses . | . . . . Cargo Convoy Interrupts . | . . . . Stealth | -11 -10 -10 -9 --------- Run | Jun Mat Min Mat Distress Signals 4 | . 1 . 3 Communications Jammed . | . . . . Distress Signals . | . . . . Times Spotted 45 | . 9 9 27 Peak Tracking Total 6 | . 3 3 6 Tactical Retreats 1 | . . 1 . Traps | -11 -10 -10 -9 ------- Run | Jun Mat Min Mat Traps Triggered 1 | . . . 1 Indirectly . | . . . . Trap Hack Attempts . | . . . . Triggered . | . . . . Disarmed . | . . . . Reprogrammed 2 | . 2 . . Reused . | . . . . Traps Extracted . | . . . . Installed . | . . . . Triggered . | . . . . Machines | -11 -10 -10 -9 ---------- Run | Jun Mat Min Mat Machines Disabled 12 | . 3 . 9 Max in Single Turn 2 | . 2 . 2 Machines Repaired . | . . . . Machines Sabotaged . | . . . . Overloaded Fab Kills . | . . . . Hacking | -11 -10 -10 -9 --------- Run | Jun Mat Min Mat Machines Accessed 3 | . 2 . 1 Terminals 3 | . 2 . 1 Fabricators . | . . . . Repair Stations . | . . . . Recycling Units . | . . . . Scanalyzers . | . . . . Garrison Access . | . . . . Total Hacks 7 | . 5 . 2 Successful 2 | . 1 . 1 Failed 5 | . 4 . 1 Catastrophic 2 | . 1 . 1 Database Lockouts . | . . . . Manual . | . . . . Terminals 7 | . 5 . 2 Fabricators . | . . . . Repair Stations . | . . . . Recycling Units . | . . . . Scanalyzers . | . . . . Garrison Access . | . . . . Terminal Hacks 2 | . 1 . 1 Branch Access Points 1 | . . . 1 Reprogram Traps 1 | . 1 . . Fabricator Hacks . | . . . . Repair Station Hacks . | . . . . Recycling Unit Hacks . | . . . . Scanalyzer . | . . . . Garrison Access Hacks . | . . . . Unauthorized Hacks . | . . . . Terminals . | . . . . Fabricators . | . . . . Repair Stations . | . . . . Recycling Units . | . . . . Scanalyzers . | . . . . Garrison Access . | . . . . Data Cores Recovered . | . . . . Used . | . . . . Hacking Detections 3 | . 2 . 1 Full Trace Events . | . . . . Feedback Events . | . . . . Feedback Blocked . | . . . . Robot Schematics Acquired . | . . . . Robots Built . | . . . . Authchips . | . . . . Time . | . . . . Total Robot Build Rating . | . . . . Part Schematics Acquired . | . . . . Parts Built . | . . . . Authchips . | . . . . Time . | . . . . Total Part Build Rating . | . . . . Parts Repaired . | . . . . Time . | . . . . Parts Recycled . | . . . . Recycled Matter . | . . . . Retrieved Matter . | . . . . Retrieved Components . | . . . . Parts Scanalyzed . | . . . . Part Schematics Acquired . | . . . . Parts Damaged . | . . . . Bothacking | -11 -10 -10 -9 ------------ Run | Jun Mat Min Mat Used RIF Installer . | . . . . Robots Hacked . | . . . . Non-combat . | . . . . Combat . | . . . . Robot Hacks Applied . | . . . . Relay Couplers Released . | . . . . Fabnet Peak Effective % . | . . . . Robots Rewired . | . . . . Allies Hacked . | . . . . Hacks Repelled . | . . . . Allies | -11 -10 -10 -9 -------- Run | Jun Mat Min Mat Total Allies . | . . . . Largest Group . | . . . . Highest-Rated Group . | . . . . Highest-Rated Ally . | . . . . Total Orders . | . . . . Ally Attacks . | . . . . Total Damage . | . . . . Kills . | . . . . Allies Corrupted . | . . . . Allies Melted . | . . . . Intel | -11 -10 -10 -9 ------- Run | Jun Mat Min Mat Robot Analysis Total . | . . . . Derelict Logs Recovered 1 | . . 1 . Drone Launches . | . . . . Drone Recoveries . | . . . . Exploration | -11 -10 -10 -9 ------------- Run | Jun Mat Min Mat Turns Passed 1858 | 48 374 991 445 Spaces Moved 1160 | 36 231 663 230 Core 12 | 12 . . . Treads . | . . . . Legs 1148 | 24 231 663 230 Wheels . | . . . . Hover . | . . . . Flight . | . . . . Fastest Speed 50 | 50 120 120 120 Average Speed 120 | 96 120 120 127 Slowest Speed 260 | 120 120 120 260 Overloaded Moves . | . . . . Propulsion Burnouts . | . . . . Robots Hopped . | . . . . Cave-ins Triggered . | . . . . Exploration Rate (%) 48 | 3 55 97 37 Regions Visited 3 Branch Regions 1 Pre-discovered Areas 2 | . . 2 . Known Exits Taken . | . . . . Unknown Exits Taken 3 | 1 1 1 . Scrap Searched 1 | . . 1 . Spaces Dug . | . . . . Terrain Destroyed 131 | . 8 13 110 Melee . | . . . . Projectile . | . . . . AOE 131 | . 8 13 110 Terrain Rammed . | . . . . Walls Destroyed . | . . . . Machines Disabled . | . . . . Actions | -11 -10 -10 -9 --------- Run | Jun Mat Min Mat Total 1445 | 48 270 823 304 Wait 133 | . . 133 . Move 1157 | 35 230 662 230 Hop . | . . . . Pick Up 28 | 7 6 4 11 Fast Attach 2 | 2 . . . Attach 13 | 4 2 2 5 Detach . | . . . . Swap 5 | . . 1 4 Drop 4 | . 2 1 1 Fire 102 | . 30 20 52 Melee . | . . . . Ram . | . . . . Kick 1 | . . . 1 Crush . | . . . . Escape Stasis . | . . . . Rewire . | . . . . Trap . | . . . . Miscellaneous . | . . . . Route ------- -11/Junkyard -10/Materials (discovered 3 exits: *Mat / [*Min x2]) -10/Mines (discovered 2 exits: *Mat x2) -9/Materials (discovered 3 exits: [*Mat] / *Min x2) History --------- Turn | Location | Event 11 | -11/Junkyard | Discovered new exit (range 16) 49 | -11/Junkyard | Entered Materials 126 | -10/Materials | Discovered new exit (range 14) 207 | -10/Materials | Discovered new exit (range 9) 315 | -10/Materials | Build established: Mutant 394 | -10/Materials | Discovered new exit (range 8) 423 | -10/Materials | Entered Mines 527 | -10/Mines | Discovered new exit (range 6) 551 | -10/Mines | YI-UF0 nonchalantly dropped a Grenade Launcher on the ground 619 | -10/Mines | Discovered new exit (range 8) 677 | -10/Mines | Received a Rocket Launcher from a helpful Derelict 840 | -10/Mines | Learned location of Zion (-6) 1008 | -10/Mines | Learned location of Storage (-7) 1414 | -10/Mines | Entered Materials 1414 | -9/Materials | Evolved 2 slots: Propulsion x2 1503 | -9/Materials | Identified exit to Mines 1667 | -9/Materials | Discovered new exit (range 10) 1815 | -9/Materials | Lost 4 parts (3n1w) 1859 | -9/Materials | Self-destructed Last Messages --------------- 01837_ S-10 Pest destroyed. 01837_ K-01 Serf collects debris. 01839_ Deuterium Engine destroyed. 01840_ ALERT: Hostiles spotted, dispatching reinforcements to Terminal M012. 01841_ K-01 Serf collects debris. 01842_ S-10 Pest destroyed. 01844_ K-01 Serf collects debris. 01844_ S-10 Pest destroyed. 01845_ K-01 Serf collects debris. 01849_ R-06 Scavenger collects Imp. Ion Engine. 01850_ K-01 Serf collects debris. 01852_ R-06 Scavenger collects Ion Engine. 01852_ Acquired 57 matter. 01853_ K-01 Serf collects debris. 01856_ R-06 Scavenger collects Sml. Storage Unit. 01857_ K-01 Serf collects debris. 01857_ Aluminum Leg destroyed. 01857_ K-01 Serf collects debris. 01859_ R-06 Scavenger collects Sml. Matter Pod. Map ----- +----------------------------------------------------+ | ????????????????????????# % # | | ????????????????????????# # % | | ????????????????????????# ^ # | | ???????????????????#????# " ### | | ???????????????????# ???# """ #?# | | ???????????????????# ??# =! "" #?# | | ???????????????????# ?# ]= "" #?# | | ???????????????????# # ]! " # | | ???????????????????# / + ! | | ???????????????????# # # | | ???????????????????# ### #### ######## | | ???????????????????# ????# #??# #??????# | | ???????????????????#??????# #??# #??????# | | ??????????????????????????# #??# #??????##### # | | ??????????????????????????#+#### #??????????#### | | ??????????????????????????# ## #?????????????? | | ??????????????????????????# ## #?????????????? | | ??????????????????????????# ## #?????????????? | | ??????????????????????????# ## #?????????????? | | ??????????????????????????# ## #########?????? | | ??????????????????????????# ## #"""""""#?????? | | ????????????????????####### ## #" |"! "#?????? | | ???????????#######+##% # #" ##+##?? | | ????????? ==!% r%= %* r %* [ | | ????????? *=k=! % %= [ k == > !%= | | ????????? [s%*!=%[*% [@ = =%] =!* | | ????????????#########= [ ]= ##+###? | | ????????????????????##### * # ########?????? | | ????????????????????????# k# ?????????? | | ????????????????????????## a # ??????? | | ?????????????????????????# ## ??????? | | ?????????????????????????# [ ??????? | | ?????????????????????????# =% ??????? | | ????????????????????????# #?????? | | ????????????????????????## ! #?????? | | ?????????????????????????## #?????? | | ?????????????????????????# # = ??????? | | ?????????????????????????# ????????? | | ?????????????????????????# ### ## ???????????? | | ????????????????????????? # ##?+???#???????????? | | ??????????????????????????? ???????????????????? | | ?????????????????????????????????????????????????? | | ?????????????????????????????????????????????????? | | ?????????????????????????????????????????????????? | | ?????????????????????????????????????????????????? | | ?????????????????????????????????????????????????? | | ?????????????????????????????????????????????????? | | ?????????????????????????????????????????????????? | | ?????????????????????????????????????????????????? | | ?????????????????????????????????????????????????? | +----------------------------------------------------+ Best States ------------- Heat Dissipation 28 Energy Generation 14 Energy Capacity 275 Matter Stores 300 Matter Capacity 300 Sight Range 16 Terrain Scan Density 10 Additional Mass Support 6 Evasion (%) 55 Item Schematics ----------------- None Robot Schematics ------------------ None Fabricated ------------ Nothing Alien Tech Used ----------------- None Achievements -------------- None Challenges ------------ None Game ------ Seed IonEncryptedField Manual? 0 Play Time 00:15:39 Cumulative 14.2 hours Start 2023.10.02 @ 15:51:03 End 2023.10.02 @ 16:04:33 Sessions 1 Manual Loads 0 Difficulty Rogue Special Mode None Game No. 31 Rogue 28 Adventurer 3 Explorer 0 Win Type - Total 0 Types 0/0/0/0/0/0/0/0/0 Lore% 15 Gallery% 25 Achievement% 21 Wizard Run 0 Options --------- ASCII 0 Keyboard 0 Movement Mouse Keybinds 0 Fullscreen 2 Font 18/SmallcapsGlow Map View 76x50 Tactical HUD 1 Map Filters NONE Filters NONE Steam 1 RUN: 723f2462-15f8-49f9-aee4-86f91a398b5f